bitfinex/quotes_ETHUSD_20230111
["timestamp","ask_amount","ask_price","bid_price","bid_amount"]
[1673416566818,16.80311045,1333.0,1332.8,2.556e-05]
[1673416567282,18.49136666,1333.0,1332.8,2.556e-05]
[1673416569866,1.12546909,1332.9,1332.8,2.556e-05]
[1673416570079,3.62546909,1332.9,1332.8,2.556e-05]
[1673416570281,26.13275909,1332.9,1332.8,2.556e-05]
[1673416570538,26.19342516,1332.9,1332.8,2.556e-05]
[1673416572219,30.01800532,1332.9,1332.8,2.556e-05]
[1673416572545,22.51557532,1332.9,1332.8,2.556e-05]
[1673416574221,15.01314532,1332.9,1332.8,2.556e-05]
[1673416575360,22.51557532,1332.9,1332.8,2.556e-05]
[1673416580086,15.01314532,1332.9,1332.8,2.556e-05]
[1673416581041,16.70140153,1332.9,1332.8,2.556e-05]
[1673416582342,24.20383153,1332.9,1332.8,2.556e-05]
[1673416583240,23.07836244,1332.9,1332.8,2.556e-05]
[1673416583656,27.68081698,1332.9,1332.8,2.556e-05]
[1673416583871,23.07836244,1332.9,1332.8,2.556e-05]
[1673416584128,30.58079244,1332.9,1332.8,2.556e-05]
[1673416591752,32.83009739,1332.9,1332.8,2.556e-05]
[1673416592697,30.58079244,1332.9,1332.8,2.556e-05]
[1673416593380,32.83009739,1332.9,1332.8,2.556e-05]
[1673416595128,30.58079244,1332.9,1332.8,2.556e-05]
[1673416597761,13.07593244,1332.9,1332.8,2.556e-05]
[1673416598013,20.57836244,1332.9,1332.8,2.556e-05]
[1673416598236,21.7025733,1332.9,1332.8,2.556e-05]
[1673416598391,21.70258187,1332.9,1332.8,2.556e-05]
[1673416598599,20.57836244,1332.9,1332.8,2.556e-05]
[1673416598812,21.70258378,1332.9,1332.8,2.556e-05]
[1673416599669,20.57836244,1332.9,1332.8,2.556e-05]
[1673416600417,20.01454064,1332.9,1332.8,2.556e-05]
[1673416600627,20.01454064,1332.9,1332.8,1.86154734]
[1673416601227,1.18510048,1332.9,1332.8,1.86154734]
[1673416601435,1.12443441,1332.9,1332.8,2.556e-05]
[1673416601646,8.62686441,1332.9,1332.8,1.86154734]
[1673416601855,8.68753048,1332.9,1332.8,1.86154734]
[1673416604533,16.18996048,1332.9,1332.8,1.86154734]
[1673416606093,8.68753048,1332.9,1332.8,1.86154734]
[1673416611266,1.18510048,1332.9,1332.8,2.98307069]
[1673416611419,0.002,1332.9,1332.8,4.65807489]
[1673416611641,0.002,1332.9,1332.8,2.98307069]
[1673416612843,8.71791239,1333.0,1332.8,2.98307069]
[1673416613000,1.21598239,1333.0,1332.8,2.98307069]
[1673416613210,1.15668429,1333.0,1332.8,2.98304513]
[1673416614484,20.85868049,1333.1,1332.8,12.16093933]
[1673416614704,20.85868049,1333.1,1332.9,1.86152178]
[1673416614705,28.36025049,1333.1,1332.9,1.86152178]
[1673416614910,27.74790251,1333.1,1332.9,1.86152178]
[1673416615319,28.36020896,1333.1,1332.9,2.1678419]
[1673416615518,18.51350896,1333.1,1332.8,2.86252755]
[1673416615724,17.90120251,1333.1,1332.8,5.13676374]
[1673416615939,17.90120251,1333.1,1332.8,5.20276374]
[1673416616148,17.90120251,1333.1,1332.9,1.86129086]
[1673416616414,25.40277251,1333.1,1332.9,1.86129086]
[1673416618281,25.40277251,1333.1,1332.8,1.12152335]
[1673416618529,25.40277251,1333.1,1332.8,5.98279192]
[1673416618668,25.40277251,1333.1,1332.9,1.86126857]
[1673416622724,4.60245454,1333.0,1332.9,1.86126857]
[1673416623043,4.60245454,1333.0,1332.8,0.066]
[1673416623044,30.00972,1332.9,1332.8,0.066]
[1673416623248,30.00972,1332.9,1332.7,7.79460832]
[1673416623249,36.35747264,1332.9,1332.7,0.12900832]
[1673416623407,36.35747264,1332.9,1332.7,0.06300832]
[1673416624156,37.48190705,1332.9,1332.7,0.06300832]
[1673416625630,38.09402328,1332.9,1332.7,0.06300832]
[1673416625888,2.5,1332.8,1332.7,0.06300832]
[1673416626202,25.009,1332.8,1332.7,0.06300832]
[1673416626414,25.0682981,1332.8,1332.7,0.06300832]
[1673416633623,34.78233209,1332.8,1332.7,0.06300832]
[1673416633834,36.47057062,1332.8,1332.7,0.06300832]
[1673416634083,40.92705169,1332.8,1332.7,0.06300832]
[1673416634401,42.6153079,1332.8,1332.7,0.06300832]
[1673416635309,42.6153079,1332.8,1332.7,0.06071708]
[1673416635760,40.92705169,1332.8,1332.7,0.06071708]
[1673416636171,42.6153079,1332.8,1332.7,0.06071708]
[1673416636358,43.1760595,1332.8,1332.7,0.06071708]
[1673416637027,35.6730595,1332.8,1332.7,0.06071708]
[1673416639713,33.98480329,1332.8,1332.7,0.06071708]
[1673416641326,33.98518221,1332.8,1332.7,0.06071708]
[1673416642503,33.37267593,1332.8,1332.7,0.06071708]
[1673416644189,33.37267593,1332.8,1332.3,3.45571224]
[1673416644190,44.67333657,1332.8,1332.3,3.45571224]
[1673416644500,44.67333657,1332.8,1332.1,12.5615398]
[1673416644501,1.12228601,1332.4,1332.2,0.066]
[1673416644723,4.73911173,1332.3,1332.1,0.12654946]
[1673416645065,19.37441643,1332.2,1332.1,0.12654946]
[1673416645206,19.99691453,1332.2,1332.1,0.12654946]
[1673416645525,12.49053453,1332.2,1332.1,0.12654946]
[1673416645731,23.53667705,1332.2,1332.1,0.12654946]
[1673416645989,26.03667705,1332.2,1332.1,0.12654946]
[1673416646937,26.03280904,1332.2,1332.1,0.12654946]
[1673416647310,27.72680904,1332.2,1332.1,0.12654946]
[1673416647560,27.72619973,1332.2,1332.1,0.12654946]
[1673416647784,27.75844961,1332.2,1332.1,0.12654946]
[1673416650038,32.68691025,1332.2,1332.1,0.12654946]
[1673416650246,33.25011025,1332.2,1332.1,0.12654946]
[1673416651083,40.75649025,1332.2,1332.1,0.12654946]
[1673416656574,40.19329025,1332.2,1332.1,0.12654946]
[1673416658369,36.39562961,1332.2,1332.1,0.12654946]
[1673416659648,32.03860893,1332.2,1332.1,0.12654946]
[1673416659843,36.63423399,1332.2,1332.1,0.12654946]
[1673416660077,32.03860893,1332.2,1332.1,0.12654946]
[1673416660255,15.0720581,1332.2,1332.1,1.42554946]
[1673416660437,0.0592981,1332.2,1332.1,1.42554946]
[1673416660807,7.50603,1332.3,1332.1,1.42554946]
[1673416661016,7.5653281,1332.3,1332.1,1.42554946]
[1673416661642,15.0713581,1332.3,1332.1,1.42554946]
[1673416661861,0.0592981,1332.3,1332.1,1.95279028]
[1673416662046,7.5645481,1332.4,1332.2,1.13739001]
[1673416662376,15.0700881,1332.4,1332.2,1.13739001]
[1673416663168,7.5645481,1332.4,1332.2,1.13739001]
[1673416663373,15.0700881,1332.4,1332.2,1.13739001]
[1673416663633,22.5756281,1332.4,1332.2,1.13739001]
[1673416667278,15.0700881,1332.4,1332.2,1.13739001]
[1673416667490,0.0592981,1332.4,1332.2,1.13739001]
[1673416667708,24.29235,1332.5,1332.2,1.13739001]
[1673416667709,31.8566581,1332.5,1332.2,1.13739001]
[1673416667915,39.3616981,1332.5,1332.2,1.13739001]
[1673416668119,31.8566581,1332.5,1332.2,1.13739001]
[1673416668544,39.3616981,1332.5,1332.2,1.13739001]
[1673416671603,43.95732316,1332.5,1332.2,1.13739001]
[1673416671831,39.3616981,1332.5,1332.2,1.13739001]
[1673416673617,47.7549838,1332.5,1332.2,1.13739001]
[1673416673777,47.7549838,1332.5,1331.9,13.36014033]
[1673416673778,3.79766064,1332.0,1331.8,0.03]
[1673416673993,2.57979846,1331.7,1331.6,3.34598448]
[1673416674250,6.6074591,1331.7,1331.5,0.066]
[1673416674404,26.92259052,1331.6,1331.4,0.16849604]
[1673416674618,3.79766064,1331.5,1331.4,0.16849604]
[1673416674829,11.30798064,1331.5,1331.4,0.16849604]
[1673416675070,11.36727874,1331.5,1331.4,0.16849604]
[1673416675569,18.87759874,1331.5,1331.4,0.16849604]
[1673416675844,21.5758996,1331.5,1331.4,0.16849604]
[1673416676140,3.85695874,1331.5,1331.4,0.16849604]
[1673416676354,7.5676181,1331.5,1331.4,0.16849604]
[1673416676563,15.0799381,1331.5,1331.4,0.16849604]
[1673416678951,7.5696181,1331.5,1331.4,0.16849604]
[1673416679155,15.0799381,1331.5,1331.4,0.16849604]
[1673416679391,7.5696181,1331.5,1331.4,0.16849604]
[1673416679612,22.5902581,1331.5,1331.4,0.16849604]
[1673416679765,22.5902581,1331.5,1331.2,1.10095327]
[1673416680135,22.5902581,1331.5,1331.2,1.6027486]
[1673416680936,26.38791874,1331.5,1331.1,3.917]
[1673416681177,30.96685287,1331.5,1331.1,2.5]
[1673416681502,26.33791874,1331.5,1331.1,2.5]
[1673416681863,30.91731329,1331.5,1331.0,10.40285493]
[1673416682080,34.76005262,1331.5,1331.0,7.90285493]
[1673416682554,8.37705342,1331.4,1331.0,6.55185493]
[1673416682719,8.43680147,1331.4,1331.0,6.55185493]
[1673416682927,22.53468,1331.3,1331.0,6.55185493]
[1673416683152,22.5939781,1331.3,1331.0,6.55185493]
[1673416683362,22.5939781,1331.3,1331.0,5.80215493]
[1673416686336,25.98749596,1331.3,1331.0,5.80215493]
[1673416687750,9.7545531,1331.2,1331.0,5.80215493]
[1673416687965,30.05032,1331.1,1331.0,5.80215493]
[1673416688226,25.83112533,1331.1,1331.0,5.80215493]
[1673416688390,30.47849485,1331.1,1331.0,5.80215493]
[1673416688591,37.84129603,1331.1,1331.0,5.80215493]
[1673416689484,39.19229603,1331.1,1331.0,5.80215493]
[1673416690235,34.54492651,1331.1,1331.0,5.80215493]
[1673416691364,35.10862651,1331.1,1331.0,5.80215493]
[1673416692333,41.33699603,1331.1,1331.0,5.80215493]
[1673416692567,42.08932398,1331.1,1331.0,5.80215493]
[1673416692988,41.33699603,1331.1,1331.0,5.80215493]
[1673416694307,48.40399603,1331.1,1331.0,5.80215493]
[1673416695198,5.802,1331.0,1330.7,0.19031611]
[1673416695414,5.802,1331.0,1330.8,0.7260764]
[1673416695415,4.67753316,1330.9,1330.8,0.7260764]
[1673416695724,4.67753316,1330.9,1330.7,0.19031611]
[1673416695725,26.14627681,1330.9,1330.7,0.19031611]
[1673416695916,8.1368081,1330.9,1330.7,0.19031611]
[1673416696108,0.0592981,1330.9,1330.7,0.19031611]
[1673416696327,20.17639064,1330.9,1330.7,0.19031611]
[1673416696528,30.6523648,1330.9,1330.7,0.19031611]
[1673416696886,26.85470416,1330.9,1330.7,0.19031611]
[1673416697038,22.6004281,1330.9,1330.7,0.19031611]
[1673416713058,15.0867181,1330.9,1330.7,0.19031611]
[1673416713646,22.6004281,1330.9,1330.7,0.19031611]
[1673416714096,23.9514281,1330.9,1330.7,0.19031611]
[1673416716391,2.5,1330.8,1330.7,0.19031611]
[1673416716583,25.04281,1330.8,1330.7,0.19031611]
[1673416716793,25.1021081,1330.8,1330.7,0.19031611]
[1673416717246,22.6021081,1330.8,1330.7,0.19031611]
[1673416718999,15.0878381,1330.8,1330.7,0.19031611]
[1673416719422,22.6021081,1330.8,1330.7,0.19031611]
[1673416722797,25.61368991,1330.8,1330.7,0.19031611]
[1673416723887,25.60984499,1330.8,1330.7,0.19031611]
[1673416724293,18.09557499,1330.8,1330.7,0.19031611]
[1673416724512,25.60984499,1330.8,1330.7,0.19031611]
[1673416729774,31.5945181,1330.8,1330.7,0.19031611]
[1673416729949,31.5945181,1330.8,1330.6,0.0050388]
[1673416729950,34.41191834,1330.8,1330.6,0.0050388]
[1673416730166,4.2172313,1330.7,1330.6,0.0050388]
[1673416730378,31.40278287,1330.7,1330.6,0.0050388]
[1673416730695,33.21562431,1330.7,1330.6,0.0050388]
[1673416731355,32.09346108,1330.7,1330.6,0.0050388]
[1673416731528,33.21505071,1330.7,1330.6,0.0050388]
[1673416731733,31.53178901,1330.7,1330.6,0.0050388]
[1673416732205,38.34971135,1330.7,1330.6,0.0050388]
[1673416732572,36.66644965,1330.7,1330.6,0.0050388]
[1673416732835,34.91290631,1330.7,1330.6,0.0050388]
[1673416733010,10.10752286,1330.7,1330.6,0.0050388]
[1673416733229,15.0889781,1330.7,1330.6,0.0050388]
[1673416733553,22.6038181,1330.7,1330.6,0.0050388]
[1673416734096,7.5741381,1330.7,1330.6,0.0050388]
[1673416734286,7.5741381,1330.7,1330.6,1.3040388]
[1673416734287,0.0592981,1330.7,1330.6,1.3040388]
[1673416734618,8.0032,1330.8,1330.6,1.74931626]
[1673416734619,15.0884781,1330.8,1330.6,1.74931626]
[1673416734837,15.0884781,1330.8,1330.6,1.3040388]
[1673416735202,22.6031381,1330.8,1330.6,0.0050388]
[1673416735413,2.5,1330.7,1330.6,0.0050388]
[1673416735659,10.01484,1330.7,1330.6,0.0050388]
[1673416735885,10.0741381,1330.7,1330.6,0.0050388]
[1673416736847,17.5889781,1330.7,1330.6,0.0050388]
[1673416739405,37.35293396,1330.7,1330.6,0.0050388]
[1673416739621,44.67881401,1330.7,1330.6,0.0050388]
[1673416739885,46.36207571,1330.7,1330.4,0.6936655]
[1673416740038,22.54791,1330.5,1330.4,0.6936655]
[1673416740253,22.6072081,1330.5,1330.4,0.6936655]
[1673416740491,7.5752681,1330.5,1330.4,1.19248244]
[1673416740698,15.0912381,1330.5,1330.4,1.19248244]
[1673416741297,24.86790091,1330.5,1330.4,0.6936655]
[1673416742136,17.35193091,1330.5,1330.4,0.6936655]
[1673416742710,24.86790091,1330.5,1330.4,0.6936655]
[1673416743201,17.35193091,1330.5,1330.4,0.6936655]
[1673416743376,9.83596091,1330.5,1330.4,1.19247277]
[1673416743889,7.5752681,1330.5,1330.4,1.19247277]
[1673416744104,0.0592981,1330.5,1330.4,2.31088531]
[1673416744294,23.9482581,1330.7,1330.4,2.31088531]
[1673416744510,8.9175381,1330.7,1330.4,0.6936655]
[1673416744711,15.0896481,1330.7,1330.4,2.31081574]
[1673416744891,15.0896481,1330.7,1330.4,0.6936655]
[1673416745357,18.42785323,1330.7,1330.4,0.6936655]
[1673416746782,15.0896481,1330.7,1330.5,0.49864148]
[1673416746990,0.0592981,1330.7,1330.5,0.49864148]
[1673416747342,30.57902798,1330.8,1330.5,1.61705402]
[1673416747551,30.57902798,1330.8,1330.4,22.29117805]
[1673416747764,0.0592981,1330.8,1330.5,6.26503428]
[1673416747952,1.84458773,1331.0,1330.6,6.26503428]
[1673416748166,0.6637,1331.0,1330.7,8.02648682]
[1673416748365,0.6637,1331.0,1330.7,7.58084]
[1673416748568,0.1,1331.0,1330.7,7.58084]
[1673416748781,7.61325,1331.0,1330.7,7.58084]
[1673416749047,15.1857981,1331.0,1330.7,1.09107218]
[1673416749195,0.1592981,1331.0,1330.7,2.5]
[1673416749410,0.1,1331.0,1330.7,10.01465]
[1673416749634,7.61318,1331.0,1330.7,8.60572218]
[1673416749846,8.79406773,1331.0,1330.7,1.09107218]
[1673416750057,12.94830467,1331.0,1330.6,35.44365472]
[1673416750365,20.46148467,1331.0,1330.7,0.51156093]
[1673416752563,12.94830467,1331.0,1330.7,0.51156093]
[1673416753775,12.94830467,1331.0,1330.8,3.34598448]
[1673416753776,5.18091052,1330.9,1330.8,3.34598448]
[1673416753948,5.18091052,1330.9,1330.7,0.066]
[1673416753949,22.54281,1330.8,1330.7,0.066]
[1673416754164,22.6021081,1330.8,1330.6,10.1089]
[1673416754398,22.6021081,1330.8,1330.6,9.9589]
[1673416754695,26.78122504,1330.8,1330.6,9.9589]
[1673416754904,26.78122504,1330.8,1330.6,0.064]
[1673416755221,26.78122504,1330.8,1330.5,1.1244924]
[1673416755400,26.78122504,1330.8,1330.5,1.63614783]
[1673416756193,25.2362,1330.6,1330.4,0.7596655]
[1673416756502,3.79766064,1330.5,1330.4,0.6936655]
[1673416756658,11.31363064,1330.5,1330.4,0.6936655]
[1673416756872,11.37292874,1330.5,1330.4,1.20519024]
[1673416757118,29.57048142,1330.5,1330.4,1.20519024]
[1673416758419,29.57048142,1330.5,1330.4,0.6936655]
[1673416759208,12.08388078,1330.5,1330.4,1.20514347]
[1673416759421,3.22491078,1330.5,1330.4,1.20514347]
[1673416759630,10.68158268,1330.5,1330.4,1.20514347]
[1673416759874,10.74088078,1330.5,1330.4,1.20514347]
[1673416761359,18.25685078,1330.5,1330.4,1.20514347]
[1673416761574,25.77282078,1330.5,1330.4,0.6936655]
[1673416767472,25.77282078,1330.5,1330.4,0.5936655]
[1673416767966,29.57048142,1330.5,1330.4,0.5936655]
[1673416770141,14.53854142,1330.5,1330.4,0.5936655]
[1673416770402,29.57048142,1330.5,1330.4,0.5936655]
[1673416774660,18.25685078,1330.5,1330.4,0.5936655]
[1673416774907,10.74088078,1330.5,1330.4,0.5936655]
[1673416775657,3.22491078,1330.5,1330.4,0.5936655]
[1673416775808,3.16561268,1330.5,1330.4,0.5936655]
[1673416776023,10.68158268,1330.5,1330.4,0.5936655]
[1673416776280,10.74088078,1330.5,1330.4,0.5936655]
[1673416777703,10.74088078,1330.5,1330.4,1.10480651]
[1673416777704,0.0592981,1330.5,1330.4,1.10480651]
[1673416777950,0.0592981,1330.7,1330.4,24.2677479]
[1673416778158,7.9902981,1330.8,1330.5,15.54287101]
[1673416778380,7.9902981,1330.8,1330.5,17.59773]
[1673416778590,7.9902981,1330.8,1330.5,18.62280218]
[1673416778809,7.9902981,1330.8,1330.6,0.51107541]
[1673416778980,7.9902981,1330.8,1330.7,22.54452]
[1673416779332,7.9902981,1330.8,1330.7,1.87602473]
[1673416779543,7.9902981,1330.8,1330.7,4.31002473]
[1673416779702,7.9902981,1330.8,1330.7,1.80989333]
[1673416779912,7.9902981,1330.8,1330.7,4.30989333]
[1673416780344,7.9902981,1330.8,1330.7,1.299]
[1673416780957,7.9902981,1330.8,1330.7,9.32462057]
[1673416781111,7.9902981,1330.8,1330.7,9.39062704]
[1673416781289,7.9902981,1330.8,1330.7,9.39061818]
[1673416781852,7.9902981,1330.8,1330.7,16.90545818]
[1673416782278,7.9902981,1330.8,1330.7,16.39468]
[1673416782433,7.9902981,1330.8,1330.7,16.90537726]
[1673416783907,7.9902981,1330.8,1330.7,9.39053726]
[1673416784118,7.9902981,1330.8,1330.7,8.87984]
[1673416785218,7.9902981,1330.8,1330.7,9.39032141]
[1673416785432,7.9902981,1330.8,1330.7,9.39032094]
[1673416786142,7.9902981,1330.8,1330.7,8.87984]
[1673416786497,7.9902981,1330.8,1330.7,9.39021255]
[1673416786637,7.9902981,1330.8,1330.7,8.87984]
[1673416788014,7.9902981,1330.8,1330.7,23.90952]
[1673416788265,7.9902981,1330.8,1330.7,24.4198189]
[1673416788450,0.1,1331.0,1330.8,5.48036113]
[1673416788646,0.1,1331.0,1330.8,4.1687986]
[1673416788865,0.1,1331.0,1330.9,8.02366806]
[1673416789089,0.1,1331.0,1330.9,18.10337806]
[1673416789515,0.1,1331.0,1330.9,15.60337806]
[1673416790429,0.1,1331.0,1330.9,7.57971]
[1673416790795,0.1,1331.0,1330.9,1.365]
[1673416790949,0.1,1331.0,1330.9,1.299]
[1673416799184,22.63942,1331.0,1330.8,7.7642]
[1673416799393,22.70542,1331.0,1330.8,0.066]
[1673416799661,22.70542,1331.0,1330.8,3.0]
[1673416800973,27.38662898,1331.0,1330.7,10.3139]
[1673416801188,22.73766988,1331.0,1330.7,10.3139]
[1673416801392,34.93961949,1331.0,1330.7,10.3139]
[1673416801859,30.25841051,1331.0,1330.7,10.3139]
[1673416802823,2.5,1330.9,1330.8,0.49497292]
[1673416802999,17.52742,1330.9,1330.8,0.49497292]
[1673416803175,17.59342,1330.9,1330.8,0.49497292]
[1673416803385,20.86937505,1330.9,1330.8,0.49497292]
[1673416804370,28.38308505,1330.9,1330.8,0.49497292]
[1673416805944,20.86937505,1330.9,1330.8,0.49497292]
[1673416806409,13.35566505,1330.9,1330.8,0.49497292]
[1673416807633,5.84195505,1330.9,1330.8,0.49497292]
[1673416807848,3.34195505,1330.9,1330.8,0.49497292]
[1673416808060,3.27595505,1330.9,1330.8,0.49497292]
[1673416809774,29.59982052,1331.0,1330.8,0.49497292]
[1673416813197,30.72141015,1331.0,1330.8,0.49497292]
[1673416813408,2.5,1330.9,1330.8,0.49497292]
[1673416813733,28.83879064,1330.9,1330.8,0.49497292]
[1673416813943,39.48803381,1330.9,1330.8,0.49497292]
[1673416814177,48.58913283,1330.9,1330.8,0.49167612]
[1673416814508,49.71079674,1330.9,1330.8,0.49167612]
[1673416816488,48.02753504,1330.9,1330.8,0.49167612]
[1673416816981,49.70817129,1330.9,1330.8,0.49167612]
[1673416818563,48.02753504,1330.9,1330.8,0.49167612]
[1673416818813,48.25753504,1330.9,1330.8,0.49167612]
[1673416819029,7.5154,1330.6,1330.4,18.9875655]
[1673416819188,8.9344,1330.6,1330.4,0.6596655]
[1673416819400,8.9344,1330.6,1330.4,0.5936655]
[1673416823444,16.4498,1330.6,1330.4,0.5936655]
[1673416824167,8.9344,1330.6,1330.4,0.5936655]
[1673416824384,0.066,1330.6,1330.4,0.5936655]
[1673416824698,0.11075896,1330.7,1330.5,2.5]
[1673416826215,7.62570896,1330.7,1330.5,2.5]
[1673416826382,7.69170896,1330.7,1330.4,9.449927]
[1673416827020,7.69170896,1330.7,1330.4,11.949927]
[1673416827740,7.69170896,1330.7,1330.4,19.466397]
[1673416828118,7.69170896,1330.7,1330.4,20.58883447]
[1673416828331,7.69170896,1330.7,1330.4,19.466397]
[1673416828534,7.69170896,1330.7,1330.4,13.07236447]
[1673416828908,7.69170896,1330.7,1330.4,11.949927]
[1673416829062,7.69170896,1330.7,1330.4,13.07236447]
[1673416830457,7.69170896,1330.7,1330.5,3.03020842]
[1673416830677,7.69170896,1330.7,1330.5,2.5]
[1673416831103,7.69170896,1330.7,1330.4,13.07236447]
[1673416831321,7.69170896,1330.7,1330.5,0.53025345]
[1673416831498,7.69170896,1330.7,1330.5,3.03025345]
[1673416831702,7.69170896,1330.7,1330.4,13.07236447]
[1673416831934,7.69170896,1330.7,1330.5,3.0302624]
[1673416832104,7.69170896,1330.7,1330.5,2.5]
[1673416832545,7.69170896,1330.7,1330.4,13.07236447]
[1673416832897,15.20665896,1330.7,1330.5,0.53040352]
[1673416833436,0.16724853,1330.6,1330.5,0.53040352]
[1673416834478,0.16724853,1330.6,1330.5,3.03071477]
[1673416834681,0.16724853,1330.6,1330.5,0.53071477]
[1673416835001,0.16724853,1330.6,1330.4,10.57236447]
[1673416835175,0.16724853,1330.6,1330.4,0.6596655]
[1673416835385,0.16724853,1330.6,1330.4,0.5936655]
[1673416836136,7.68272853,1330.6,1330.4,0.5936655]
[1673416836348,7.74872853,1330.6,1330.4,0.5936655]
[1673416836944,0.23324853,1330.6,1330.4,0.5936655]
[1673416837151,0.16724853,1330.6,1330.4,2.24692219]
[1673416837468,0.16724853,1330.6,1330.5,1.12243747]
[1673416837715,0.16724853,1330.6,1330.5,8.04677259]
[1673416837929,0.16724853,1330.6,1330.5,10.61277259]
[1673416838308,0.16724853,1330.6,1330.5,20.93791866]
[1673416838520,0.16724853,1330.6,1330.5,27.33145119]
[1673416838786,0.16724853,1330.6,1330.5,19.81548119]
[1673416839306,0.16724853,1330.6,1330.5,27.33145119]
[1673416839625,0.16724853,1330.6,1330.5,29.58043599]
[1673416840139,0.03586707,1330.6,1330.5,34.69135803]
[1673416840320,0.1673557,1330.6,1330.5,35.77021953]
[1673416841820,0.1673557,1330.6,1330.5,43.59981953]
[1673416845680,0.1673557,1330.6,1330.5,37.77040633]
[1673416846040,0.1673557,1330.6,1330.5,45.28637633]
[1673416846242,0.1673557,1330.6,1330.5,37.77900652]
[1673416846768,0.1673557,1330.6,1330.5,35.27900652]
[1673416847971,0.1673557,1330.6,1330.5,34.20014502]
[1673416848231,0.1673557,1330.6,1330.5,41.71611502]
[1673416848553,0.1673557,1330.6,1330.5,42.79497652]
[1673416850543,0.1673557,1330.6,1330.5,35.27900652]
[1673416851397,0.1673557,1330.6,1330.5,27.76303652]
[1673416851603,0.1673557,1330.6,1330.5,26.68417502]
[1673416851758,0.1673557,1330.6,1330.5,24.43519022]
[1673416851972,0.1673557,1330.6,1330.5,25.51405172]
[1673416852397,0.1673557,1330.6,1330.5,33.03002172]
[1673416852608,0.1673557,1330.6,1330.5,35.27900652]
[1673416852969,0.1673557,1330.6,1330.3,12.84766975]
[1673416852970,2.7133557,1330.6,1330.3,12.84766975]
[1673416853213,2.7133557,1330.6,1330.1,34.03370165]
[1673416853214,56.57815914,1330.5,1330.1,3.3732621]
[1673416853341,56.57815914,1330.5,1329.6,5.57938125]
[1673416853342,18.6404842,1330.2,1330.0,0.002]
[1673416853543,18.6404842,1330.2,1329.0,0.7386267]
[1673416853544,5.83353486,1329.7,1329.4,19.78639507]
[1673416853753,7.894,1329.5,1329.4,2.81863974]
[1673416854001,31.86090857,1329.6,1329.4,2.65263974]
[1673416854225,31.86090857,1329.6,1329.4,2.91790371]
[1673416854226,15.04324,1329.5,1329.4,2.91790371]
[1673416854393,0.066,1329.5,1329.4,2.91790371]
[1673416854608,0.002,1329.7,1329.4,2.91790371]
[1673416855142,7.52252,1329.7,1329.5,2.5]
[1673416855465,16.46204,1329.7,1329.5,2.5]
[1673416855654,8.94152,1329.7,1329.5,2.5]
[1673416855875,0.068,1329.7,1329.4,2.71863974]
[1673416856088,0.002,1329.7,1329.4,5.44131354]
[1673416856304,0.002,1329.7,1329.4,5.50731354]
[1673416856518,0.002,1329.7,1329.5,2.5]
[1673416856709,0.05264744,1329.6,1329.5,2.5]
[1673416858836,0.05264744,1329.6,1329.4,20.3982338]
[1673416859057,0.05264744,1329.6,1329.5,2.5]
[1673416860956,0.05264744,1329.6,1329.5,10.02162]
[1673416861117,0.05264744,1329.6,1329.5,10.08762]
[1673416861327,0.05264744,1329.6,1329.5,14.70785491]
[1673416861542,0.05264744,1329.6,1329.5,26.91633335]
[1673416861781,0.05264744,1329.6,1329.5,37.7991784]
[1673416862182,0.05264744,1329.6,1329.5,37.43795335]
[1673416863390,0.05264744,1329.6,1329.5,32.75109491]
[1673416864167,0.05264744,1329.6,1329.5,34.10409491]
[1673416865113,1.348843,1329.6,1329.5,5.566]
[1673416865318,12.66755364,1329.6,1329.5,0.066]
[1673416865697,12.66755364,1329.6,1329.1,0.066]
[1673416865698,25.17146208,1329.6,1329.1,0.066]
[1673416865861,4.36196064,1329.5,1329.0,0.7386267]
[1673416866069,4.68685844,1329.4,1329.0,0.7386267]
[1673416866282,11.31985064,1329.4,1329.0,0.7386267]
[1673416866618,9.90151908,1329.4,1329.0,8.2630767]
[1673416866803,24.94603908,1329.4,1329.0,0.8046267]
[1673416867021,9.90151908,1329.4,1329.0,0.7386267]
[1673416867423,0.02885007,1329.3,1329.0,0.7386267]
[1673416867666,3.88185007,1329.3,1329.0,0.7386267]
[1673416868062,1.38185007,1329.3,1329.0,0.7386267]
[1673416869000,1.38185007,1329.3,1329.0,8.2629467]
[1673416869211,1.38185007,1329.3,1329.0,8.3289467]
[1673416869461,6.49066064,1329.1,1328.7,0.21156442]
[1673416869628,3.79766064,1328.8,1328.7,0.21156442]
[1673416869839,19.07882064,1328.8,1328.5,2.5]
[1673416870093,4.02766064,1328.7,1328.5,2.5]
[1673416870279,4.02766064,1328.7,1328.4,0.8157]
[1673416870280,2.706,1328.6,1328.4,0.8157]
[1673416870485,2.706,1328.6,1328.4,0.7497]
[1673416870486,1.353,1328.6,1328.4,0.7497]
[1673416870939,0.002,1328.7,1328.4,8.27737]
[1673416871150,5.60605148,1328.9,1328.6,7.52671]
[1673416871151,6.23665148,1328.9,1328.6,7.52671]
[1673416871364,3.61765148,1328.9,1328.6,7.59235]
[1673416871616,3.61765148,1328.9,1328.6,0.066]
[1673416871617,3.55165148,1328.9,1328.6,0.066]
[1673416871824,3.55165148,1328.9,1328.6,2.5]
[1673416872653,1.34,1328.7,1328.5,0.066]
[1673416872826,1.34,1328.7,1328.4,0.7497]
[1673416873036,6.07342272,1328.8,1328.4,0.7497]
[1673416873373,4.018,1328.8,1328.4,0.7497]
[1673416873704,17.47348212,1328.9,1328.5,16.45208336]
[1673416873705,3.05305148,1328.9,1328.5,16.45208336]
[1673416873882,2.98705148,1328.9,1328.6,27.72846064]
[1673416874086,2.98705148,1328.9,1328.8,7.52558]
[1673416874332,2.98705148,1328.9,1328.8,1.035]
[1673416874543,2.98705148,1328.9,1328.8,0.969]
[1673416875245,2.98705148,1328.9,1328.7,2.5]
[1673416876020,2.98705148,1328.9,1328.6,10.45390505]
[1673416876228,2.98705148,1328.9,1328.6,21.95780438]
[1673416876648,2.98705148,1328.9,1328.6,29.48451438]
[1673416877039,2.98705148,1328.9,1328.6,29.12328933]
[1673416877243,2.98705148,1328.9,1328.6,25.14607]
[1673416877460,2.98705148,1328.9,1328.6,22.64607]
[1673416878020,2.98705148,1328.9,1328.6,7.59268]
[1673416878353,2.98705148,1328.9,1328.6,6.618366]
[1673416878564,2.98705148,1328.9,1328.6,14.145076]
[1673416878927,4.34005148,1328.9,1328.6,14.145076]
[1673416879509,4.34005148,1328.9,1327.7,1.4883267]
[1673416879510,3.79766064,1327.9,1327.7,1.4883267]
[1673416879721,2.572,1328.1,1327.7,0.4886267]
[1673416879722,4.36276064,1327.8,1327.7,0.4886267]
[1673416879877,0.066,1328.0,1327.7,0.4886267]
[1673416879878,0.066,1327.9,1327.7,0.4886267]
[1673416880083,0.066,1328.1,1327.7,15.5522367]
[1673416880456,0.066,1328.1,1327.7,0.5546267]
[1673416880457,1.353,1327.9,1327.7,0.5546267]
[1673416880673,1.353,1327.9,1327.7,0.4886267]